[Event "58th Akiba Rubinstein C 2022"]
[Site "Polanica-Zdroj"]
[Date "2022.08.14"]
[Round "2.11"]
[White "Zdziarski, Waldemar"]
[Black "Chubar, Vladimir"]
[Result "0-1"]
[ECO "B08"]
[WhiteElo "1312"]
[BlackElo "1809"]
[Annotator "NA RC"]
[PlyCount "96"]
[EventDate "2022.08.13"]
[EventCountry "POL"]
[SourceTitle "playchess.com"]
[Source "ChessBase"]
[SourceQuality "1"]
[TimeControl "40/5400+30:1800+30"]

1. e4 {[%emt 0:00:30]} g6 {[%emt 0:02:03]} 2. d4 {[%emt 0:00:15]} Bg7 {[%emt 0:00:51]} 3. Nf3 {[%emt 0:00:48]} d6 {[%emt 0:00:55]} 4. h3 Nf6 {[%emt 0:01:44]} 5. Nc3 {[%emt 0:01:58]} c5 {[%emt 0:00:59]} 6. dxc5 {[%emt 0:01:15]} Qa5 {[%emt 0:00:19]} 7. Bd2 {[%emt 0:02:25]} Qxc5 {[%emt 0:01:01]} 8. Be2 {[%emt 0:02:59]} Be6 {[%emt 0:01:41]} 9. O-O {[%emt 0:00:55]} a6 {[%emt 0:00:42]} 10. Be3 {[%emt 0:04:49]} Qb4 {[%emt 0:03:12]} 11. Qd3 {[%emt 0:03:08]} Nbd7 {[%emt 0:03:23]} 12. a3 {[%emt 0:00:17]} Qa5 {[%emt 0:00:29]} 13. Ng5 {[%emt 0:01:16]} Ne5 14. Qd4 {[%emt 0:03:41]} Rc8 {[%emt 0:06:56]} 15. Nxe6 {[%emt 0:02:58]} fxe6 {[%emt 0:00:08]} 16. Qb6 {[%emt 0:00:27]} Qxb6 {[%emt 0:00:47]} 17. Bxb6 {[%emt 0:00:24]} Nc4 18. Bxc4 {[%emt 0:03:07]} Rxc4 {[%emt 0:09:22]} 19. f3 {[%emt 0:00:19]} Nd7 {[%emt 0:00:59]} 20. Bf2 {[%emt 0:05:03]} Bxc3 {[%emt 0:02:26]} 21. bxc3 {[%emt 0:00:03]} O-O {[%emt 0:00:34]} 22. Be1 {[%emt 0:00:14]} b5 {[%emt 0:00:17]} 23. Bd2 {[%emt 0:02:49]} e5 {[%emt 0:00:24]} 24. Rfb1 {[%emt 0:00:28]} Nb6 {[%emt 0:02:49]} 25. Rb4 {[%emt 0:00:24]} Rfc8 {[%emt 0:00:27]} 26. Rab1 {[%emt 0:04:14]} Na4 {[%emt 0:07:45]} 27. Rxc4 {[%emt 0:00:15]} Rxc4 {[%emt 0:00:07]} 28. Rb3 {[%emt 0:00:29]} Kf7 {[%emt 0:02:15]} 29. Kf2 e6 30. Rb4 {[%emt 0:03:19]} Rc8 {[%emt 0:01:30]} 31. Rb3 {[%emt 0:00:39]} d5 {[%emt 0:00:14]} 32. Ke2 {[%emt 0:02:22]} dxe4 {[%emt 0:04:17]} 33. fxe4 {[%emt 0:00:29]} Nc5 {[%emt 0:00:18]} 34. Rb4 {[%emt 0:00:18]} Na4 {[%emt 0:00:13]} 35. Rb3 {[%emt 0:00:30]} Rc4 {[%emt 0:00:15]} 36. Rb4 {[%emt 0:00:31]} Rc8 {[%emt 0:02:24]} 37. Rb3 {[%emt 0:00:15]} Ke8 {[%emt 0:01:07]} 38. Be1 {[%emt 0:04:16]} Kd7 {[%emt 0:01:03]} 39. Kd3 {[%emt 0:00:38]} Nc5+ {[%emt 0:00:08]} 40. Ke3 {[%emt 0:00:42]} Nxb3 {[%emt 0:00:03]} 41. cxb3 {[%emt 0:30:02]} Rf8 {[%emt 0:00:40]} 42. Bg3 {[%emt 0:00:00]} Kd6 {[%emt 0:00:09]} 43. Bf2 {[%emt 0:00:00]} a5 {[%emt 0:00:16]} 44. Ke2 {[%emt 0:00:00]} Rf4 {[%emt 0:00:58]} 45. Ke3 {[%emt 0:00:00]} Kc5 {[%emt 0:01:40]} 46. Bg3 {[%emt 0:00:00]} g5 {[%emt 0:00:57]} 47. Bxf4 {[%emt 0:00:00]} exf4+ {[%emt 0:00:10]} 48. Kd3 {[%emt 0:00:00]} h5 {[%emt 0:01:35]} 0-1

[Event "58th Akiba Rubinstein C 2022"]
[Site "Polanica-Zdroj"]
[Date "2022.08.14"]
[Round "2.12"]
[White "Stopka, Tomasz"]
[Black "Bobrowski, Piotr"]
[Result "1-0"]
[ECO "B06"]
[WhiteElo "1355"]
[BlackElo "1764"]
[Annotator "NA RC"]
[PlyCount "83"]
[EventDate "2022.08.13"]
[EventCountry "POL"]
[SourceTitle "playchess.com"]
[Source "ChessBase"]
[SourceQuality "1"]
[TimeControl "40/5400+30:1800+30"]

1. e4 {[%emt 0:00:08]} g6 {[%emt 0:00:01]} 2. d4 {[%emt 0:00:37]} Bg7 {[%emt 0:00:09]} 3. Nf3 {[%emt 0:00:42]} e6 {[%emt 0:00:22]} 4. Nc3 {[%emt 0:01:22]} Ne7 {[%emt 0:00:35]} 5. Be3 {[%emt 0:01:12]} b6 {[%emt 0:03:05]} 6. Qd2 {[%emt 0:01:38]} d5 {[%emt 0:02:09]} 7. e5 {[%emt 0:01:30]} h6 {[%emt 0:01:53]} 8. Bd3 {[%emt 0:01:03]} Ba6 {[%emt 0:00:28]} 9. b4 {[%emt 0:07:16]} Bxd3 {[%emt 0:00:26]} 10. Qxd3 {[%emt 0:00:18]} Nd7 {[%emt 0:03:49]} 11. O-O {[%emt 0:02:25]} Nf5 {[%emt 0:01:02]} 12. Bd2 {[%emt 0:01:50]} c5 {[%emt 0:02:19]} 13. bxc5 {[%emt 0:04:13]} bxc5 {[%emt 0:02:32]} 14. Rfe1 {[%emt 0:02:08]} O-O {[%emt 0:01:02]} 15. Ne2 {[%emt 0:16:57]} cxd4 {[%emt 0:02:58]} 16. Nexd4 {[%emt 0:00:30]} Nc5 {[%emt 0:00:36]} 17. Qa3 {[%emt 0:01:59]} Nxd4 {[%emt 0:02:00]} 18. Nxd4 {[%emt 0:03:01]} Ne4 {[%emt 0:00:12]} 19. Bb4 {[%emt 0:01:53]} Bxe5 {[%emt 0:02:43]} 20. Nc6 {[%emt 0:02:25]} Bxh2+ {[%emt 0:03:16]} 21. Kxh2 {[%emt 0:02:15]} Qh4+ {[%emt 0:00:24]} 22. Qh3 {[%emt 0:00:02]} Qf4+ {[%emt 0:03:28]} 23. g3 {[%emt 0:01:54]} Qxf2+ {[%emt 0:00:44]} 24. Qg2 {[%emt 0:00:17]} Qb6 {[%emt 0:01:32]} 25. Bxf8 {[%emt 0:01:42]} Kxf8 {[%emt 0:01:02]} 26. Ne5 {[%emt 0:00:13]} Qb2 27. Nd3 {[%emt 0:03:34]} Qd4 {[%emt 0:03:30]} 28. Rab1 {[%emt 0:00:25]} Rc8 {[%emt 0:02:34]} 29. Rf1 {[%emt 0:05:12]} Qa4 {[%emt 0:03:43]} 30. Rb2 {[%emt 0:01:48]} Kg7 {[%emt 0:00:38]} 31. Rf3 {[%emt 0:03:31]} Rc7 {[%emt 0:06:15]} 32. Qe2 {[%emt 0:02:08]} f5 {[%emt 0:01:40]} 33. Nf4 {[%emt 0:02:11]} Kf6 {[%emt 0:00:53]} 34. Rfb3 {[%emt 0:00:38]} Rc4 {[%emt 0:03:27]} 35. Nd3 {[%emt 0:04:30]} Qa6 {[%emt 0:04:17]} 36. Rb8 {[%emt 0:03:30]} Qd6 {[%emt 0:00:25]} 37. Nf4 {[%emt 0:01:14]} h5 {[%emt 0:03:03]} 38. Rg8 {[%emt 0:02:27]} h4 {[%emt 0:04:52]} 39. Rxg6+ {[%emt 0:00:35]} Kf7 {[%emt 0:00:04]} 40. Rb7+ {[%emt 0:00:00]} Rc7 {[%emt 0:00:00]} 41. Rxc7+ {[%emt 0:01:45]} Qxc7 {[%emt 0:00:02]} 42. Rg7+ 1-0

[Event "58th Akiba Rubinstein C 2022"]
[Site "Polanica-Zdroj"]
[Date "2022.08.14"]
[Round "2.13"]
[White "Zowada, Kazimierz"]
[Black "Swierczynski, Stanislaw"]
[Result "1-0"]
[ECO "D37"]
[WhiteElo "2041"]
[BlackElo "1626"]
[Annotator "NA RC"]
[PlyCount "55"]
[EventDate "2022.08.13"]
[EventCountry "POL"]
[SourceTitle "playchess.com"]
[Source "ChessBase"]
[SourceQuality "1"]
[TimeControl "40/5400+30:1800+30"]

1. d4 {[%emt 0:00:03]} d5 {[%emt 0:00:14]} 2. Nf3 {[%emt 0:00:11]} Nf6 {[%emt 0:00:20]} 3. c4 {[%emt 0:00:12]} e6 {[%emt 0:00:15]} 4. Nc3 {[%emt 0:00:20]} Be7 {[%emt 0:00:33]} 5. Bf4 {[%emt 0:00:32]} c6 {[%emt 0:01:01]} 6. e3 {[%emt 0:00:37]} O-O {[%emt 0:00:29]} 7. Qc2 {[%emt 0:00:26]} Nbd7 {[%emt 0:03:01]} 8. cxd5 {[%emt 0:02:46]} exd5 {[%emt 0:00:46]} 9. Bd3 {[%emt 0:00:34]} Re8 {[%emt 0:01:58]} 10. O-O {[%emt 0:00:16]} Nf8 {[%emt 0:00:57]} 11. a3 {[%emt 0:03:41]} Nh5 {[%emt 0:01:52]} 12. Bg3 {[%emt 0:00:56]} Nxg3 {[%emt 0:00:13]} 13. hxg3 {[%emt 0:00:11]} a5 {[%emt 0:00:58]} 14. Na4 {[%emt 0:02:51]} Ng6 {[%emt 0:02:40]} 15. Rab1 {[%emt 0:01:04]} Rb8 {[%emt 0:06:35]} 16. Rfc1 {[%emt 0:01:02]} Bd6 {[%emt 0:01:42]} 17. b4 {[%emt 0:00:23]} axb4 {[%emt 0:01:31]} 18. axb4 {[%emt 0:00:15]} b5 19. Nc5 {[%emt 0:01:47]} Bxc5 {[%emt 0:06:36]} 20. Qxc5 {[%emt 0:00:18]} Bb7 {[%emt 0:00:13]} 21. Ra1 {[%emt 0:06:14]} Ra8 {[%emt 0:00:48]} 22. Ra7 {[%emt 0:00:41]} Rxa7 {[%emt 0:00:35]} 23. Qxa7 {[%emt 0:00:08]} Qa8 {[%emt 0:00:25]} 24. Ra1 {[%emt 0:00:23]} Qxa7 {[%emt 0:05:00]} 25. Rxa7 {[%emt 0:00:09]} Rb8 {[%emt 0:00:54]} 26. Bxg6 {[%emt 0:02:11]} hxg6 {[%emt 0:02:00]} 27. Ne5 {[%emt 0:00:17]} Ba8 {[%emt 0:00:24]} 28. Rxf7 {[%emt 0:00:44]} 1-0

[Event "58th Akiba Rubinstein C 2022"]
[Site "Polanica-Zdroj"]
[Date "2022.08.14"]
[Round "2.14"]
[White "Szylko, Waldemar"]
[Black "Gregulski, Zbigniew"]
[Result "1/2-1/2"]
[ECO "C27"]
[WhiteElo "1911"]
[BlackElo "1591"]
[Annotator "NA RC"]
[PlyCount "43"]
[EventDate "2022.08.13"]
[EventCountry "POL"]
[SourceTitle "playchess.com"]
[Source "ChessBase"]
[SourceQuality "1"]
[TimeControl "40/5400+30:1800+30"]

1. e4 {[%emt 0:00:04]} e5 {[%emt 0:00:14]} 2. Nc3 {[%emt 0:00:06]} Nf6 {[%emt 0:00:07]} 3. Bc4 {[%emt 0:00:15]} Nxe4 {[%emt 0:00:37]} 4. Nxe4 {[%emt 0:01:04]} d5 {[%emt 0:00:10]} 5. Bxd5 {[%emt 0:02:55]} Qxd5 {[%emt 0:00:15]} 6. Qf3 {[%emt 0:00:33]} Be6 {[%emt 0:01:14]} 7. Ng5 {[%emt 0:00:47]} Nc6 {[%emt 0:01:21]} 8. Nxe6 {[%emt 0:01:12]} Qxe6 {[%emt 0:00:10]} 9. c3 {[%emt 0:04:07]} a5 {[%emt 0:01:50]} 10. d3 {[%emt 0:00:23]} Bc5 {[%emt 0:01:06]} 11. Be3 {[%emt 0:00:27]} Bxe3 {[%emt 0:00:22]} 12. Qxe3 {[%emt 0:00:11]} O-O {[%emt 0:00:22]} 13. Ne2 {[%emt 0:00:18]} Ne7 {[%emt 0:01:02]} 14. O-O {[%emt 0:00:45]} Nd5 {[%emt 0:04:01]} 15. Qc5 {[%emt 0:01:53]} b6 {[%emt 0:01:11]} 16. Qc4 {[%emt 0:00:06]} c5 {[%emt 0:01:00]} 17. Rfe1 {[%emt 0:01:04]} Rfe8 {[%emt 0:00:54]} 18. Rad1 {[%emt 0:02:47]} Rad8 19. Qh4 {[%emt 0:06:46]} Rd7 {[%emt 0:06:14]} 20. Kf1 {[%emt 0:01:31]} g6 {[%emt 0:01:20]} 21. d4 {[%emt 0:02:23]} Qc6 22. dxe5 1/2-1/2

[Event "58th Akiba Rubinstein C 2022"]
[Site "Polanica-Zdroj"]
[Date "2022.08.15"]
[Round "3.1"]
[White "Marusenko, Petr"]
[Black "Krupa, Jerzy"]
[Result "1-0"]
[ECO "D35"]
[WhiteElo "2075"]
[BlackElo "1771"]
[Annotator "NA RC"]
[PlyCount "81"]
[EventDate "2022.08.13"]
[EventCountry "POL"]
[SourceTitle "playchess.com"]
[Source "ChessBase"]
[SourceQuality "1"]
[TimeControl "40/5400+30:1800+30"]

1. d4 {[%emt 0:00:03]} Nf6 {[%emt 0:00:11]} 2. c4 {[%emt 0:00:16]} e6 {[%emt 0:00:15]} 3. Nc3 {[%emt 0:00:07]} d5 {[%emt 0:00:46]} 4. cxd5 {[%emt 0:00:07]} exd5 {[%emt 0:00:08]} 5. Bg5 {[%emt 0:00:06]} Be7 {[%emt 0:00:40]} 6. e3 {[%emt 0:00:08]} O-O {[%emt 0:02:36]} 7. Bd3 {[%emt 0:00:08]} Nbd7 {[%emt 0:00:52]} 8. Nge2 {[%emt 0:01:00]} Re8 {[%emt 0:03:12]} 9. Qc2 {[%emt 0:01:26]} c6 {[%emt 0:02:07]} 10. O-O {[%emt 0:00:10]} Nf8 {[%emt 0:01:00]} 11. Rab1 {[%emt 0:00:12]} Ng6 {[%emt 0:01:37]} 12. b4 {[%emt 0:00:14]} a6 {[%emt 0:03:36]} 13. Na4 {[%emt 0:01:22]} Ne4 {[%emt 0:08:00]} 14. Bxe7 {[%emt 0:00:17]} Rxe7 {[%emt 0:01:00]} 15. Nc5 {[%emt 0:00:14]} f5 {[%emt 0:01:28]} 16. Ng3 {[%emt 0:02:59]} Nh4 {[%emt 0:07:23]} 17. a4 {[%emt 0:02:49]} Rf7 $14 {[%emt 0:01:24]} 18. b5 {[%emt 0:01:04]} axb5 {[%emt 0:00:41]} 19. axb5 {[%emt 0:00:05]} Qg5 {[%emt 0:00:23]} 20. bxc6 {[%emt 0:03:07]} bxc6 {[%emt 0:02:48]} 21. Rb6 {[%emt 0:00:28]} Rf6 {[%emt 0:01:33]} 22. Rfb1 {[%emt 0:00:55]} f4 {[%emt 0:05:28]} 23. exf4 {[%emt 0:33:05]} Rxf4 {[%emt 0:07:50]} 24. Bxe4 {[%emt 0:05:08]} dxe4 {[%emt 0:09:30]} 25. Ncxe4 {[%emt 0:03:28]} Qg4 {[%emt 0:09:02]} 26. Qxc6 {[%emt 0:03:50]} Ra7 {[%emt 0:07:57]} 27. Rb8 {[%emt 0:01:33]} Rf8 {[%emt 0:00:39]} 28. Qd5+ {[%emt 0:01:01]} Qe6 {[%emt 0:04:24]} 29. Qxe6+ {[%emt 0:01:55]} Bxe6 {[%emt 0:00:01]} 30. Rxf8+ {[%emt 0:00:13]} Kxf8 {[%emt 0:00:01]} 31. Ng5 {[%emt 0:00:32]} Bd5 {[%emt 0:01:19]} 32. Nxh7+ {[%emt 0:01:27]} Kf7 {[%emt 0:00:53]} 33. Ng5+ {[%emt 0:00:13]} Kg6 {[%emt 0:00:10]} 34. N5e4 {[%emt 0:00:12]} Ra4 {[%emt 0:01:31]} 35. Rd1 {[%emt 0:17:06]} Rb4 {[%emt 0:02:01]} 36. f3 {[%emt 0:00:52]} Rb2 {[%emt 0:03:04]} 37. Rd2 {[%emt 0:02:37]} Rb3 {[%emt 0:02:18]} 38. Kf2 {[%emt 0:00:36]} Nf5 {[%emt 0:01:33]} 39. Nxf5 {[%emt 0:01:53]} Kxf5 {[%emt 0:00:01]} 40. Ng3+ {[%emt 0:00:00]} Kf6 {[%emt 0:00:00]} 41. Nf1 {[%emt 0:00:26]} 1-0

[Event "58th Akiba Rubinstein C 2022"]
[Site "Polanica-Zdroj"]
[Date "2022.08.15"]
[Round "3.2"]
[White "Shilov, Sergej"]
[Black "Kruczynski, Marek"]
[Result "1-0"]
[ECO "A04"]
[WhiteElo "2048"]
[BlackElo "1651"]
[Annotator "NA RC"]
[PlyCount "77"]
[EventDate "2022.08.13"]
[EventCountry "POL"]
[SourceTitle "playchess.com"]
[Source "ChessBase"]
[SourceQuality "1"]
[TimeControl "40/5400+30:1800+30"]

1. Nf3 {[%emt 0:00:09]} b6 {[%emt 0:01:41]} 2. e4 {[%emt 0:02:59]} Bb7 {[%emt 0:00:32]} 3. Nc3 {[%emt 0:00:10]} c5 {[%emt 0:01:32]} 4. d4 {[%emt 0:01:07]} cxd4 {[%emt 0:00:53]} 5. Nxd4 {[%emt 0:00:02]} g6 {[%emt 0:01:07]} 6. Be3 {[%emt 0:05:10]} Bg7 {[%emt 0:00:41]} 7. Bc4 {[%emt 0:01:21]} Qc8 {[%emt 0:04:06]} (7... Nc6 $11) 8. Bb3 {[%emt 0:02:09]} Nc6 $14 {[%emt 0:02:55]} 9. Qd2 {[%emt 0:04:11]} d6 {[%emt 0:03:56]} 10. f3 {[%emt 0:09:29]} Nf6 {[%emt 0:05:10]} 11. Nxc6 {[%emt 0:02:20]} Bxc6 {[%emt 0:00:20]} 12. Bh6 {[%emt 0:00:23]} O-O {[%emt 0:17:18]} 13. h4 {[%emt 0:01:37]} Bxh6 {[%emt 0:07:02]} 14. Qxh6 {[%emt 0:00:11]} Kh8 {[%emt 0:00:53]} 15. O-O-O {[%emt 0:04:05]} Ng8 {[%emt 0:03:38]} 16. Qd2 {[%emt 0:00:51]} h6 {[%emt 0:02:00]} 17. g4 {[%emt 0:05:30]} Kh7 {[%emt 0:03:21]} 18. Qe2 {[%emt 0:09:45]} a5 {[%emt 0:00:59]} 19. a4 {[%emt 0:00:54]} Rb8 {[%emt 0:03:56]} 20. f4 {[%emt 0:02:46]} Qe8 {[%emt 0:00:48]} 21. g5 {[%emt 0:07:29]} h5 {[%emt 0:00:34]} 22. f5 {[%emt 0:02:31]} b5 {[%emt 0:02:18]} 23. Rhf1 {[%emt 0:06:09]} bxa4 {[%emt 0:01:04]} 24. fxg6+ {[%emt 0:00:35]} fxg6 {[%emt 0:02:18]} 25. Be6 {[%emt 0:00:35]} Kh8 26. Qe3 {[%emt 0:11:54]} a3 {[%emt 0:15:15]} 27. bxa3 {[%emt 0:00:23]} Bb5 {[%emt 0:05:04]} 28. Rxf8 {[%emt 0:08:57]} Qxf8 {[%emt 0:00:17]} 29. a4 {[%emt 0:00:03]} Ba6 {[%emt 0:07:41]} 30. e5 {[%emt 0:07:11]} Rb4 {[%emt 0:05:14]} 31. exd6 {[%emt 0:02:51]} exd6 {[%emt 0:00:23]} 32. Nd5 {[%emt 0:00:21]} Rb7 {[%emt 0:01:41]} 33. Qc3+ {[%emt 0:01:08]} Kh7 {[%emt 0:00:48]} 34. Bxg8+ {[%emt 0:00:33]} Kxg8 {[%emt 0:00:27]} 35. Nf6+ {[%emt 0:00:02]} Kf7 {[%emt 0:00:38]} 36. Ne4 {[%emt 0:01:07]} d5 {[%emt 0:01:07]} 37. Qf6+ {[%emt 0:00:31]} Kg8 {[%emt 0:00:36]} 38. Qxg6+ {[%emt 0:00:15]} Qg7 {[%emt 0:00:24]} 39. Nf6+ {[%emt 0:00:08]} 1-0

[Event "58th Akiba Rubinstein C 2022"]
[Site "Polanica-Zdroj"]
[Date "2022.08.15"]
[Round "3.3"]
[White "Gromczak, Dariusz"]
[Black "fainberg, Boris"]
[Result "1-0"]
[ECO "B24"]
[WhiteElo "1906"]
[BlackElo "2015"]
[Annotator "NA RC"]
[PlyCount "95"]
[EventDate "2022.08.13"]
[EventCountry "POL"]
[SourceTitle "playchess.com"]
[Source "ChessBase"]
[SourceQuality "1"]
[TimeControl "40/5400+30:1800+30"]

1. e4 {[%emt 0:00:05]} c5 {[%emt 0:00:12]} 2. Nc3 {[%emt 0:00:11]} Nc6 {[%emt 0:01:07]} 3. Bb5 {[%emt 0:00:17]} g6 {[%emt 0:09:50]} 4. Bxc6 {[%emt 0:00:33]} dxc6 {[%emt 0:00:47]} 5. d3 {[%emt 0:00:20]} e5 {[%emt 0:15:27]} 6. f4 {[%emt 0:06:26]} exf4 {[%emt 0:04:37]} 7. Bxf4 {[%emt 0:00:43]} Bg7 {[%emt 0:04:41]} 8. Nf3 {[%emt 0:02:01]} Nf6 {[%emt 0:05:39]} 9. Qd2 {[%emt 0:04:36]} O-O {[%emt 0:03:11]} 10. O-O {[%emt 0:01:50]} c4 $14 {[%emt 0:06:42]} (10... Bg4 $11) 11. dxc4 {[%emt 0:09:59]} Qxd2 {[%emt 0:09:34]} 12. Bxd2 {[%emt 0:05:09]} Be6 {[%emt 0:07:44]} 13. b3 Rad8 {[%emt 0:06:59]} 14. Rad1 {[%emt 0:04:29]} Ng4 {[%emt 0:03:44]} 15. h3 {[%emt 0:06:40]} Ne5 {[%emt 0:03:10]} 16. Nxe5 {[%emt 0:01:43]} Bxe5 {[%emt 0:00:02]} 17. Ne2 {[%emt 0:01:06]} Rd7 {[%emt 0:05:32]} 18. Bc3 {[%emt 0:02:34]} Bxc3 {[%emt 0:00:20]} 19. Nxc3 {[%emt 0:04:22]} Rfd8 {[%emt 0:00:25]} 20. Rxd7 {[%emt 0:00:21]} Rxd7 {[%emt 0:00:01]} 21. Rd1 {[%emt 0:01:16]} Rxd1+ {[%emt 0:00:09]} 22. Nxd1 {[%emt 0:00:10]} Kg7 {[%emt 0:01:17]} 23. Kf2 {[%emt 0:02:09]} Kf6 {[%emt 0:00:33]} 24. Ke3 {[%emt 0:00:23]} Ke5 {[%emt 0:00:49]} 25. Nf2 {[%emt 0:00:24]} f5 {[%emt 0:02:10]} 26. Nd3+ {[%emt 0:02:54]} Kd6 {[%emt 0:00:23]} 27. e5+ {[%emt 0:04:46]} Ke7 {[%emt 0:00:21]} 28. h4 {[%emt 0:02:21]} h6 {[%emt 0:00:40]} 29. Kf4 {[%emt 0:03:33]} Bc8 {[%emt 0:02:10]} 30. a4 {[%emt 0:06:46]} a5 {[%emt 0:04:14]} 31. g3 {[%emt 0:06:56]} Ke6 {[%emt 0:00:41]} 32. g4 {[%emt 0:04:19]} fxg4 {[%emt 0:00:11]} 33. Kxg4 {[%emt 0:00:13]} Ke7+ {[%emt 0:01:42]} 34. Kf4 {[%emt 0:01:04]} Kf7 {[%emt 0:01:07]} 35. Nc5 {[%emt 0:07:19]} b6 {[%emt 0:00:31]} 36. Ne4 {[%emt 0:00:35]} Bh3 {[%emt 0:01:06]} 37. c5 {[%emt 0:00:35]} b5 {[%emt 0:00:36]} 38. axb5 {[%emt 0:00:26]} cxb5 {[%emt 0:00:02]} 39. Nd6+ {[%emt 0:04:20]} Ke6 {[%emt 0:00:06]} 40. Nxb5 {[%emt 0:00:00]} Kd5 {[%emt 0:00:00]} 41. Nd6 {[%emt 0:21:35]} Kxc5 {[%emt 0:02:43]} 42. Nf7 {[%emt 0:01:19]} Bf5 {[%emt 0:08:27]} 43. c3 {[%emt 0:03:22]} Be6 {[%emt 0:03:39]} 44. b4+ {[%emt 0:00:38]} Kd5 {[%emt 0:05:13]} 45. Nd6 {[%emt 0:07:43]} a4 {[%emt 0:06:37]} 46. Nb5 {[%emt 0:01:40]} Kc4 {[%emt 0:01:27]} 47. Na3+ {[%emt 0:00:07]} Kb3 {[%emt 0:02:00]} 48. b5 1-0

[Event "58th Akiba Rubinstein C 2022"]
[Site "Polanica-Zdroj"]
[Date "2022.08.15"]
[Round "3.4"]
[White "Kwiecien, Zbigniew"]
[Black "Stopka, Tomasz"]
[Result "1-0"]
[ECO "B41"]
[WhiteElo "1937"]
[BlackElo "1355"]
[Annotator "NA RC"]
[PlyCount "63"]
[EventDate "2022.08.13"]
[EventCountry "POL"]
[SourceTitle "playchess.com"]
[Source "ChessBase"]
[SourceQuality "1"]
[TimeControl "40/5400+30:1800+30"]

1. e4 {[%emt 0:00:10]} c5 {[%emt 0:00:26]} 2. Nf3 {[%emt 0:00:24]} e6 {[%emt 0:00:24]} 3. d4 {[%emt 0:00:12]} cxd4 {[%emt 0:00:10]} 4. Nxd4 {[%emt 0:00:11]} a6 {[%emt 0:00:11]} 5. c4 {[%emt 0:00:31]} Nf6 {[%emt 0:00:50]} 6. Bd3 {[%emt 0:02:03]} Qc7 {[%emt 0:02:10]} 7. O-O {[%emt 0:02:13]} Bc5 {[%emt 0:01:19]} 8. Nc2 {[%emt 0:00:36]} h5 {[%emt 0:01:32]} 9. b4 {[%emt 0:05:03]} Ng4 {[%emt 0:02:02]} 10. g3 {[%emt 0:00:12]} Ba7 {[%emt 0:01:14]} 11. Kg2 {[%emt 0:01:56]} Nc6 {[%emt 0:02:18]} 12. h3 {[%emt 0:02:12]} Nf6 {[%emt 0:03:47]} 13. f4 {[%emt 0:13:38]} Nd4 {[%emt 0:01:35]} 14. Bb2 $16 {[%emt 0:03:13]} ({Much weaker is} 14. c5 Nxc2 15. Qxc2 (15. Bxc2 b6 $11) 15... d6 $14) 14... Nxc2 {[%emt 0:07:12]} 15. Qxc2 {[%emt 0:00:04]} b6 {[%emt 0:01:14]} 16. Nd2 {[%emt 0:01:29]} Bb7 {[%emt 0:00:38]} 17. Nf3 {[%emt 0:00:47]} Rc8 {[%emt 0:01:14]} 18. Qe2 {[%emt 0:03:17]} Bb8 {[%emt 0:01:53]} 19. Rac1 {[%emt 0:11:26]} Rh6 {[%emt 0:08:53]} 20. e5 {[%emt 0:05:38]} Ng8 {[%emt 0:04:48]} 21. Kh2 {[%emt 0:03:44]} Ne7 {[%emt 0:02:07]} 22. b5 {[%emt 0:12:38]} a5 {[%emt 0:01:19]} 23. Ba3 {[%emt 0:00:50]} Nf5 {[%emt 0:02:28]} 24. c5 {[%emt 0:08:08]} Bxf3 {[%emt 0:02:16]} 25. Qxf3 {[%emt 0:00:02]} Ne7 {[%emt 0:03:47]} 26. Be4 {[%emt 0:02:21]} f5 {[%emt 0:03:00]} 27. Bb7 {[%emt 0:01:00]} Qd8 {[%emt 0:00:16]} 28. Bxc8 {[%emt 0:01:00]} Nxc8 {[%emt 0:00:34]} 29. c6 {[%emt 0:01:53]} d5 {[%emt 0:01:24]} 30. exd6 {[%emt 0:00:26]} Nxd6 {[%emt 0:01:07]} 31. c7 {[%emt 0:00:58]} Bxc7 {[%emt 0:00:07]} 32. Qc6+ {[%emt 0:00:06]} 1-0

[Event "58th Akiba Rubinstein C 2022"]
[Site "Polanica-Zdroj"]
[Date "2022.08.15"]
[Round "3.5"]
[White "Kawula, Andrzej"]
[Black "Pyka, Roman"]
[Result "0-1"]
[ECO "A34"]
[WhiteElo "1870"]
[BlackElo "1881"]
[Annotator "NA RC"]
[PlyCount "102"]
[EventDate "2022.08.13"]
[EventCountry "POL"]
[SourceTitle "playchess.com"]
[Source "ChessBase"]
[SourceQuality "1"]
[TimeControl "40/5400+30:1800+30"]

1. c4 {[%emt 0:00:07]} Nf6 {[%emt 0:00:01]} 2. Nc3 {[%emt 0:00:26]} c5 {[%emt 0:00:12]} 3. g3 {[%emt 0:00:07]} d5 {[%emt 0:00:08]} 4. cxd5 {[%emt 0:00:16]} Nxd5 {[%emt 0:00:14]} 5. Bg2 {[%emt 0:00:10]} Nc7 {[%emt 0:00:07]} 6. Nf3 {[%emt 0:01:23]} Nc6 {[%emt 0:00:08]} 7. O-O e5 {[%emt 0:00:07]} 8. d3 {[%emt 0:00:48]} Be7 {[%emt 0:00:20]} 9. Be3 {[%emt 0:01:35]} O-O {[%emt 0:00:49]} 10. Rc1 {[%emt 0:05:40]} b6 {[%emt 0:02:19]} 11. Qd2 Rb8 {[%emt 0:06:21]} 12. Ng5 {[%emt 0:12:33]} Nd4 {[%emt 0:01:13]} 13. f4 $15 {[%emt 0:01:16]} Nf5 {[%emt 0:05:52]} 14. Bf2 {[%emt 0:03:15]} Bxg5 {[%emt 0:07:46]} 15. fxg5 {[%emt 0:00:10]} Ne6 16. e4 {[%emt 0:03:51]} Nfd4 {[%emt 0:03:35]} 17. Be3 {[%emt 0:00:32]} Nc7 {[%emt 0:02:27]} 18. Rf2 {[%emt 0:00:54]} Be6 {[%emt 0:01:40]} 19. h4 {[%emt 0:02:34]} Bg4 {[%emt 0:02:12]} 20. Kh2 {[%emt 0:00:52]} Qd7 {[%emt 0:00:11]} 21. Bxd4 {[%emt 0:06:56]} cxd4 {[%emt 0:03:21]} 22. Nd5 {[%emt 0:04:40]} Rbc8 {[%emt 0:08:52]} 23. Qe1 {[%emt 0:14:09]} Nxd5 {[%emt 0:15:38]} 24. Rxc8 {[%emt 0:00:17]} Rxc8 {[%emt 0:00:18]} 25. exd5 {[%emt 0:00:06]} Qd6 {[%emt 0:01:18]} 26. Qe4 {[%emt 0:05:52]} Bh5 {[%emt 0:00:30]} 27. Qf5 {[%emt 0:03:06]} Rc7 {[%emt 0:04:13]} 28. Qe4 {[%emt 0:04:58]} Bg6 {[%emt 0:05:24]} 29. Qf3 h6 {[%emt 0:03:01]} 30. gxh6 {[%emt 0:02:54]} gxh6 {[%emt 0:00:13]} 31. h5 {[%emt 0:02:56]} Bh7 {[%emt 0:00:10]} 32. Qg4+ {[%emt 0:00:55]} Kf8 {[%emt 0:00:29]} 33. Qh4 {[%emt 0:03:12]} f5 {[%emt 0:00:30]} 34. Bh3 {[%emt 0:03:12]} Rf7 {[%emt 0:00:13]} 35. Rc2 {[%emt 0:00:22]} Qf6 {[%emt 0:02:49]} 36. Qxf6 {[%emt 0:03:30]} Rxf6 {[%emt 0:00:08]} 37. Rc8+ {[%emt 0:01:06]} Kg7 {[%emt 0:03:28]} 38. Rc7+ {[%emt 0:00:12]} Kg8 {[%emt 0:01:40]} 39. Rc8+ {[%emt 0:00:59]} Rf8 {[%emt 0:00:00]} 40. Rc7 {[%emt 0:00:00]} Rd8 {[%emt 0:00:00]} 41. g4 {[%emt 0:05:35]} e4 {[%emt 0:02:56]} 42. gxf5 {[%emt 0:01:38]} exd3 {[%emt 0:00:41]} 43. f6 {[%emt 0:00:33]} d2 {[%emt 0:00:42]} 44. Be6+ {[%emt 0:01:37]} Kh8 {[%emt 0:00:55]} 45. Bg4 {[%emt 0:00:13]} Bf5 46. Bd1 {[%emt 0:03:19]} Rxd5 {[%emt 0:11:18]} 47. Kg3 {[%emt 0:11:43]} Rc5 {[%emt 0:18:49]} 48. Rxc5 {[%emt 0:02:57]} bxc5 {[%emt 0:00:06]} 49. Kf4 {[%emt 0:00:22]} Bb1 {[%emt 0:00:17]} 50. Kg3 Bf5 51. Kf4 Bb1 0-1